bitfinex-derivatives/quotes_BNBF0:USTF0_20250608
["timestamp","ask_amount","ask_price","bid_price","bid_amount"]
[1749416091722,1.12291378,654.33,653.29,0.30614275]
[1749416091923,1.12291378,654.32,653.29,0.30614275]
[1749416092124,1.12291378,654.31,653.29,0.30614275]
[1749416092428,0.26594932,654.34,653.29,0.30614275]
[1749416092722,1.12245888,654.33,653.29,0.30614275]
[1749416092928,0.26594932,654.34,653.29,0.30614275]
[1749416093127,1.12246558,654.33,653.29,0.30614275]
[1749416093328,0.26594932,654.34,653.29,0.30614275]
[1749416093628,1.12236051,654.33,653.29,0.30614275]
[1749416093825,0.26594932,654.34,653.29,0.30614275]
[1749416102233,1.11594027,654.63,653.29,0.30614275]
[1749416102531,0.26604284,654.15,653.29,0.30614275]
[1749416102733,1.11594027,654.61,653.29,0.30614275]
[1749416102931,0.26604488,654.3,653.29,0.30614275]
[1749416113139,0.26604488,654.3,653.31,3.80364939]
[1749416113338,0.26604488,654.3,653.32,0.30612869]
[1749416114042,0.26604488,654.3,653.33,3.80364939]
[1749416114242,0.26604488,654.3,653.34,0.30611932]
[1749416122150,0.26604488,654.3,653.38,3.80364939]
[1749416122449,0.26604488,654.3,653.39,0.30609589]
[1749416133751,1.11594027,654.29,653.39,0.30609589]
[1749416133951,1.11594027,654.28,653.39,0.30609589]
[1749416134150,1.11594027,654.27,653.39,0.30609589]
[1749416134352,1.11594027,654.29,653.39,0.30609589]
[1749416134553,1.11594027,654.28,653.39,0.30609589]
[1749416134757,1.11594027,654.27,653.39,0.30609589]
[1749416135056,1.11594027,654.29,653.39,0.30609589]
[1749416135256,1.11594027,654.28,653.39,0.30609589]
[1749416135457,1.11594027,654.27,653.39,0.30609589]
[1749416135658,1.11594027,654.29,653.39,0.30609589]
[1749416135858,1.11594027,654.28,653.39,0.30609589]
[1749416136056,1.11594027,654.27,653.39,0.30609589]
[1749416136259,1.11594027,654.29,653.39,0.30609589]
[1749416136454,1.11594027,654.28,653.39,0.30609589]
[1749416136760,1.11594027,654.27,653.39,0.30609589]
[1749416137060,1.11594027,654.29,653.39,0.30609589]
[1749416137260,1.11594027,654.28,653.39,0.30609589]
[1749416137460,1.11594027,654.27,653.39,0.30609589]
[1749416137657,1.11594027,654.29,653.39,0.30609589]
[1749416137855,1.11594027,654.28,653.39,0.30609589]
[1749416138057,1.11594027,654.27,653.39,0.30609589]
[1749416138256,1.11594027,654.29,653.39,0.30609589]
[1749416138463,1.11594027,654.28,653.39,0.30609589]
[1749416138761,1.11594027,654.27,653.39,0.30609589]
[1749416138960,1.11594027,654.29,653.39,0.30609589]
[1749416139157,1.11594027,654.28,653.39,0.30609589]
[1749416139356,1.11594027,654.27,653.39,0.30609589]
[1749416139558,1.11594027,654.26,653.39,0.30609589]
[1749416139761,1.11594027,654.29,653.39,0.30609589]
[1749416139961,1.11594027,654.28,653.39,0.30609589]
[1749416140162,1.11594027,654.27,653.39,0.30609589]
[1749416140462,1.11594027,654.26,653.39,0.30609589]
[1749416140757,1.11594027,654.29,653.39,0.30609589]
[1749416140961,1.11594027,654.28,653.39,0.30609589]
[1749416141159,1.11594027,654.27,653.39,0.30609589]
[1749416141358,1.11594027,654.26,653.39,0.30609589]
[1749416141555,1.11594027,654.29,653.39,0.30609589]
[1749416141762,1.11594027,654.28,653.39,0.30609589]
[1749416141958,1.11594027,654.29,653.39,0.30609589]
[1749416142162,1.11594027,654.28,653.39,0.30609589]
[1749416142364,1.11594027,654.29,653.39,0.30609589]
[1749416142561,1.11594027,654.28,653.39,0.30609589]
[1749416142760,1.11594027,654.29,653.39,0.30609589]
[1749416142964,1.11594027,654.28,653.39,0.30609589]
[1749416143165,1.11594027,654.29,653.39,0.30609589]
[1749416143365,1.11594027,654.28,653.39,0.30609589]
[1749416143661,1.11594027,654.29,653.39,0.30609589]
[1749416143860,0.26604488,654.3,653.39,0.30609589]
[1749416147066,1.38198515,654.3,653.39,0.30609589]
[1749416147263,0.26604488,654.3,653.39,0.30609589]
[1749416151366,1.11775398,654.29,653.39,0.30609589]
[1749416151569,1.11775398,654.28,653.39,0.30609589]
[1749416151865,1.11775398,654.27,653.39,0.30609589]
[1749416152070,1.11775398,654.26,653.39,0.30609589]
[1749416152266,1.11775398,654.25,653.39,0.30609589]
[1749416152567,1.11775398,654.29,653.39,0.30609589]
[1749416152768,1.11775398,654.28,653.39,0.30609589]
[1749416152964,1.11775398,654.27,653.39,0.30609589]
[1749416153165,0.26604488,654.3,653.39,0.30609589]
[1749416153166,1.11775398,654.26,653.39,0.30609589]
[1749416153470,1.11775398,654.25,653.39,0.30609589]
[1749416153766,1.11775398,654.24,653.39,0.30609589]
[1749416153965,1.11775398,654.23,653.39,0.30609589]
[1749416154166,1.11775398,654.22,653.39,0.30609589]
[1749416154370,1.11775398,654.21,653.39,0.30609589]
[1749416154570,0.26604488,654.3,653.39,0.30609589]
[1749416154770,1.11748774,654.29,653.39,0.30609589]
[1749416154966,1.11748774,654.28,653.39,0.30609589]
[1749416155170,1.11748774,654.27,653.39,0.30609589]
[1749416155371,1.11748774,654.26,653.39,0.30609589]
[1749416155571,1.11748774,654.25,653.39,0.30609589]
[1749416155772,1.11748774,654.24,653.39,0.30609589]
[1749416155972,1.11748774,654.23,653.39,0.30609589]
[1749416156168,1.11748774,654.22,653.39,0.30609589]
[1749416156370,1.11748774,654.21,653.39,0.30609589]
[1749416156573,1.11748774,654.2,653.39,0.30609589]
[1749416156773,1.11748774,654.29,653.39,0.30609589]
[1749416157074,1.11748774,654.28,653.39,0.30609589]
[1749416157274,1.11748774,654.27,653.39,0.30609589]
[1749416157472,1.11748774,654.26,653.39,0.30609589]
[1749416157669,1.11748774,654.25,653.39,0.30609589]
[1749416157976,1.11748774,654.24,653.39,0.30609589]
[1749416158171,1.11748774,654.23,653.39,0.30609589]
[1749416158375,1.11748774,654.22,653.39,0.30609589]
[1749416158573,1.11748774,654.21,653.39,0.30609589]
[1749416158775,1.11748774,654.29,653.39,0.30609589]
[1749416159073,1.11748774,654.28,653.39,0.30609589]
[1749416159276,1.11748774,654.27,653.39,0.30609589]
[1749416159472,1.11748774,654.26,653.39,0.30609589]
[1749416159677,1.11748774,654.25,653.39,0.30609589]
[1749416159874,1.11748774,654.24,653.39,0.30609589]
[1749416160077,1.11748774,654.23,653.39,0.30609589]
[1749416160373,1.11748774,654.22,653.39,0.30609589]
[1749416160577,1.11748774,654.21,653.39,0.30609589]
[1749416160774,1.11751463,654.2,653.39,0.30609589]
[1749416161077,1.11751463,654.29,653.39,0.30609589]
[1749416161278,1.11751463,654.28,653.39,0.30609589]
[1749416161578,1.11751463,654.27,653.39,0.30609589]
[1749416161777,1.11751463,654.26,653.39,0.30609589]
[1749416162077,1.11751463,654.25,653.39,0.30609589]
[1749416162278,1.11751463,654.24,653.39,0.30609589]
[1749416162478,1.11751463,654.48,653.39,0.30609589]
[1749416162679,1.11751463,654.47,653.39,0.30609589]
[1749416162880,1.11751463,654.46,653.39,0.30609589]
[1749416163179,1.11751463,654.45,653.39,0.30609589]
[1749416163375,1.11751463,654.44,653.39,0.30609589]
[1749416163575,1.11751463,654.43,653.39,0.30609589]
[1749416163780,1.11751463,654.42,653.39,0.30609589]
[1749416163980,1.11751463,654.41,653.39,0.30609589]
[1749416164277,1.11751463,654.4,653.39,0.30609589]
[1749416164478,1.11751463,654.39,653.39,0.30609589]
[1749416164783,1.11751463,654.38,653.39,0.30609589]
[1749416164982,1.11751463,654.37,653.39,0.30609589]
[1749416165183,1.11751463,654.36,653.39,0.30609589]
[1749416165380,1.11751463,654.35,653.39,0.30609589]
[1749416165680,1.11751463,654.34,653.39,0.30609589]
[1749416165983,1.11751463,654.33,653.39,0.30609589]
[1749416166179,1.11751463,654.32,653.39,0.30609589]
[1749416166480,1.11751463,654.31,653.39,0.30609589]
[1749416166679,1.11751463,654.3,653.39,0.30609589]
[1749416166880,1.11751463,654.29,653.39,0.30609589]
[1749416167079,1.11751463,654.28,653.39,0.30609589]
[1749416167383,1.11751463,654.27,653.39,0.30609589]
[1749416167579,1.11751463,654.26,653.39,0.30609589]
[1749416167784,1.11751463,654.25,653.39,0.30609589]
[1749416167985,3.80446708,655.36,653.39,0.30609589]
[1749416167986,1.11751463,654.24,653.39,0.30609589]
[1749416168282,1.11751463,654.23,653.39,0.30609589]
[1749416168482,1.11751463,654.22,653.39,0.30609589]
[1749416168683,1.11751463,654.21,653.39,0.30609589]
[1749416168888,1.11751463,654.2,653.39,0.30609589]
[1749416169182,1.11751463,654.19,653.39,0.30609589]
[1749416169388,1.11751463,654.18,653.39,0.30609589]
[1749416169589,1.11751463,654.17,653.39,0.30609589]
[1749416169788,1.11751463,654.16,653.39,0.30609589]
[1749416170084,1.11751463,654.15,653.39,0.30609589]
[1749416170288,1.11751463,654.14,653.39,0.30609589]
[1749416170583,1.11751463,654.13,653.39,0.30609589]
[1749416170888,1.11751463,654.12,653.39,0.30609589]
[1749416171089,1.52178683,654.58,653.39,0.30609589]
[1749416171286,1.1380537,654.41,653.39,0.30609589]
[1749416171490,1.12348375,654.4,653.39,0.30609589]
[1749416171793,1.12348375,654.39,653.39,0.30609589]
[1749416171986,1.12348375,654.38,653.39,0.30609589]
[1749416172188,1.12348375,654.37,653.39,0.30609589]
[1749416172387,1.12348375,654.36,653.39,0.30609589]
[1749416172586,1.12348375,654.35,653.39,0.30609589]
[1749416172885,1.12348375,654.34,653.39,0.30609589]
[1749416173085,1.12348375,654.33,653.39,0.30609589]
[1749416173384,1.12348375,654.32,653.39,0.30609589]
[1749416173589,1.12348375,654.31,653.39,0.30609589]
[1749416173886,1.12348375,654.3,653.39,0.30609589]
[1749416174090,1.12348375,654.29,653.39,0.30609589]
[1749416174386,1.12348375,654.28,653.39,0.30609589]
[1749416174591,1.12348375,654.27,653.39,0.30609589]
[1749416174890,1.1380537,654.41,653.39,0.30609589]
[1749416174891,1.12348375,654.26,653.39,0.30609589]
[1749416175186,1.12348375,654.25,653.39,0.30609589]
[1749416175391,1.12348375,654.24,653.39,0.30609589]
[1749416175591,1.12348375,654.23,653.39,0.30609589]
[1749416175792,1.12348375,654.22,653.39,0.30609589]
[1749416175990,1.12348375,654.21,653.39,0.30609589]
[1749416176294,1.12348375,654.2,653.39,0.30609589]
[1749416176592,1.12348375,654.19,653.39,0.30609589]
[1749416176793,1.12348375,654.18,653.39,0.30609589]
[1749416176991,1.12348375,654.17,653.39,0.30609589]
[1749416177191,1.12348375,654.16,653.39,0.30609589]
[1749416177394,1.12348375,654.15,653.39,0.30609589]
[1749416177591,1.12348375,654.14,653.39,0.30609589]
[1749416177793,1.12348375,654.13,653.39,0.30609589]
[1749416177990,0.26620871,653.96,653.39,0.30609589]
[1749416221329,1.12348375,654.45,653.39,0.30609589]
[1749416221627,0.26608454,654.05,653.39,0.30609589]
[1749416221830,1.12348375,654.43,653.39,0.30609589]
[1749416222031,1.12348375,654.42,653.39,0.30609589]
[1749416222228,0.26606318,654.05,653.39,0.30609589]
[1749416222429,1.12348375,654.4,653.39,0.30609589]
[1749416222632,1.12348375,654.39,653.39,0.30609589]
[1749416222828,0.26606623,654.05,653.39,0.30609589]
[1749416223132,1.12348375,654.52,653.39,0.30609589]
[1749416223333,0.26606522,654.05,653.39,0.30609589]
[1749416223533,1.12348375,654.5,653.39,0.30609589]
[1749416223728,0.26605199,654.05,653.39,0.30609589]
[1749416224129,1.12348375,654.47,653.39,0.30609589]
[1749416224334,0.26606013,654.05,653.39,0.30609589]
[1749416224634,1.12348375,654.45,653.39,0.30609589]
[1749416224831,0.26606318,654.05,653.39,0.30609589]
[1749416225135,1.12348375,654.43,653.39,0.30609589]
[1749416225334,0.26606522,654.05,653.39,0.30609589]
[1749416225829,0.26606725,654.05,653.39,0.30609589]
[1749416263858,0.26606725,654.05,653.4,3.80364939]
[1749416266270,0.26606725,654.05,653.39,0.30609589]
[1749416271072,0.26606725,654.05,653.4,3.80364939]
[1749416272770,0.26606725,654.05,653.39,4.10974528]
[1749416272968,0.26606725,654.05,653.41,3.80364939]
[1749416274973,0.26606725,654.05,653.39,0.30609589]
[1749416274974,0.26606725,654.05,653.42,3.80364939]
[1749416275270,0.26606725,654.05,653.39,4.10974528]
[1749416275674,0.26606725,654.05,653.4,3.80364939]
[1749416276374,0.26606725,654.05,653.39,0.30609589]
[1749416276375,0.26606725,654.05,653.41,3.80364939]
[1749416277572,0.26606725,654.05,653.44,3.80364939]
[1749416279876,0.26606725,654.05,653.45,3.80364939]
[1749416280674,0.26606725,654.05,653.46,3.80364939]
[1749416282481,0.26606725,654.05,653.48,3.80364939]
[1749416283877,0.26606725,654.05,653.51,3.80364939]
[1749416288479,0.26606725,654.05,653.39,0.30609589]
[1749416298484,0.26606725,654.05,653.42,3.80364939]
[1749416299183,0.26606725,654.05,653.43,3.80364939]
[1749416299889,0.26606725,654.05,653.46,3.80364939]
[1749416301985,0.26606725,654.05,653.43,3.80364939]
[1749416303889,0.26606725,654.05,653.46,3.80364939]
[1749416306386,0.26606725,654.05,653.48,3.80364939]
[1749416307592,0.26606725,654.05,653.47,3.80364939]
[1749416308491,0.26606725,654.05,653.48,3.80364939]
[1749416314390,0.26606725,654.05,653.39,0.30609589]
[1749416324297,0.26606725,654.05,653.5,3.80364939]
[1749416332806,0.26606725,654.05,653.49,3.80364939]
[1749416333909,0.26606725,654.05,653.5,3.80364939]
[1749416334107,0.26606725,654.05,653.46,3.80364939]
[1749416335510,0.26606725,654.05,653.45,3.80364939]
[1749416336412,0.26606725,654.05,653.43,3.80364939]
[1749416336911,0.26606725,654.05,653.44,3.80364939]
[1749416337307,0.26606725,654.05,653.39,4.10974528]
[1749416344015,0.26606725,654.05,653.4,3.80364939]
[1749416344218,0.26606725,654.05,653.41,0.30608653]
[1749416344617,0.26606725,654.05,653.42,3.80364939]
[1749416346313,0.26606725,654.05,653.44,3.80364939]
[1749416347319,0.26606725,654.05,653.47,3.80364939]
[1749416362640,0.26606725,654.05,653.41,0.30608653]
[1749416372346,0.26606725,654.05,653.47,3.80364939]
[1749416374346,0.26606725,654.05,653.5,3.80364939]
[1749416379751,0.26606725,654.05,653.49,3.80364939]
[1749416384256,0.26606725,654.05,653.47,3.80364939]
[1749416387354,0.26606725,654.05,653.46,3.80364939]
[1749416387754,0.26606725,654.05,653.47,3.80364939]
[1749416390561,0.26606725,654.05,653.46,3.80364939]
[1749416394057,0.26606725,654.05,653.45,3.80364939]
[1749416395560,0.26606725,654.05,653.44,3.80364939]
[1749416396460,0.26606725,654.05,653.41,0.30608653]
[1749416397365,0.26606725,654.05,653.42,3.80364939]
[1749416397762,0.26606725,654.05,653.43,3.80364939]
[1749416399962,0.26606725,654.05,653.44,3.80364939]
[1749416400561,0.26606725,654.05,653.43,3.80364939]
[1749416401361,0.26606725,654.05,653.44,3.80364939]
[1749416402365,0.26606725,654.05,653.42,3.80364939]
[1749416402566,0.26606725,654.05,653.42,4.10973123]
[1749416402767,0.26606725,654.05,653.43,3.80364939]
[1749416404163,0.26606725,654.05,653.44,3.80364939]
[1749416405469,0.26606725,654.05,653.45,3.80364939]
[1749416410370,0.26606725,654.05,653.46,3.80364939]
[1749416413167,0.26606725,654.05,653.44,3.80364939]
[1749416413867,1.14317567,654.68,653.44,3.80364939]
[1749416414068,0.26602352,654.23,653.45,0.30606779]
[1749416458198,0.26602352,654.23,653.45,4.10971718]
[1749416458500,0.26602352,654.23,653.45,0.30606779]
[1749416460298,0.26602352,654.23,653.45,4.10971718]
[1749416462697,0.26602352,654.23,653.46,3.80364939]
[1749416462897,0.26602352,654.23,653.47,0.30605842]
[1749416463999,0.26602352,654.23,653.49,3.80364939]
[1749416467604,0.26602352,654.23,653.5,3.80364939]
[1749416468906,0.26602352,654.23,653.51,0.30603969]
[1749416471405,1.1060511,654.75,653.51,0.30603969]
[1749416471606,0.26598489,654.34,653.51,0.30603969]
[1749416471811,1.1060511,654.73,653.51,0.30603969]
[1749416472111,0.26596964,654.34,653.51,0.30603969]
[1749416472309,1.1060511,654.71,653.51,0.30603969]
[1749416472613,0.26597269,654.34,653.51,0.30603969]
[1749416473007,1.1060511,654.68,653.51,0.30603969]
[1749416473208,0.26597472,654.34,653.51,0.30603969]
[1749416480317,0.26597472,654.34,653.51,4.10968908]
[1749416480513,0.26597472,654.34,653.51,0.30603969]
[1749416481413,0.26597472,654.34,653.54,3.80364939]
[1749416481616,0.26597472,654.34,653.55,0.30602096]
[1749416481815,0.26597472,654.34,653.57,3.80364939]
[1749416482015,0.26597472,654.34,653.58,0.30600691]
[1749416482518,0.26597472,654.34,653.61,3.80364939]
[1749416482716,0.26597472,654.34,653.62,0.30598818]
[1749416483720,0.26597472,654.34,653.65,3.80364939]
[1749416483919,0.26597472,654.34,653.66,0.30596946]
[1749416498937,1.1060511,654.88,653.66,0.30596946]
[1749416499138,1.1060511,654.97,653.66,0.30596946]
[1749416499339,0.26591274,654.46,653.66,0.30596946]
[1749416499536,1.1060511,654.95,653.66,0.30596946]
[1749416499735,0.26589445,654.46,653.66,0.30596946]
[1749416500133,1.1060511,654.92,653.66,0.30596946]
[1749416500335,1.13914797,655.02,653.66,0.30596946]
[1749416500336,0.26588734,654.51,653.67,3.80364939]
[1749416500539,1.1060511,655.0,653.68,0.3059601]
[1749416500739,1.1060511,654.99,653.68,0.3059601]
[1749416500938,0.26587718,654.51,653.68,0.3059601]
[1749416501141,1.1060511,654.97,653.68,0.3059601]
[1749416501344,0.26588023,654.51,653.68,0.3059601]
[1749416501640,1.1060511,654.95,653.68,0.3059601]
[1749416501843,0.26588429,654.51,653.68,0.3059601]
[1749416502341,0.26588633,654.51,653.68,0.3059601]
[1749416513950,0.26588633,654.51,653.68,4.10960949]
[1749416514453,0.26588633,654.51,653.72,3.80364939]
[1749416514855,0.26588633,654.51,653.73,0.3059367]
[1749416516757,0.26588633,654.51,653.73,4.10958609]
[1749416517057,0.26588633,654.51,653.74,3.80364939]
[1749416517254,0.26588633,654.51,653.75,0.30592734]
[1749416523461,0.26588633,654.51,653.75,4.10957673]
[1749416523861,0.26588633,654.51,653.75,0.30592734]
[1749416529261,1.1060511,655.11,653.75,0.30592734]
[1749416529466,0.26588531,654.59,653.75,0.30592734]
[1749416529860,1.1060511,655.08,653.75,0.30592734]
[1749416530065,0.26585789,654.61,653.75,0.30592734]
[1749416530265,1.1060511,655.06,653.75,0.30592734]
[1749416530465,1.1060511,655.05,653.75,0.30592734]
[1749416530762,1.1060511,655.04,653.75,0.30592734]
[1749416530965,1.1060511,655.03,653.75,0.30592734]
[1749416531265,0.26585992,654.73,653.75,0.30592734]
[1749416538673,0.26585992,654.73,653.81,3.80364939]
[1749416538872,0.26585992,654.73,653.82,0.30589458]
[1749416539069,0.26585992,654.73,653.91,3.80364939]
[1749416539271,0.26585992,654.73,653.92,0.30584781]
[1749416561281,0.26585992,654.73,653.94,3.80364939]
[1749416561485,0.26585992,654.73,653.95,0.30583377]
[1749416561683,0.26585992,654.73,653.95,4.10948316]
[1749416562084,0.26585992,654.73,653.96,3.80364939]
[1749416562285,0.26585992,654.73,653.97,0.30582442]
[1749416562584,0.26585992,654.73,653.98,3.80364939]
[1749416562782,0.26585992,654.73,653.99,0.30581507]
[1749416567791,1.1060511,655.19,653.99,0.30581507]
[1749416567992,1.1060511,655.18,653.99,0.30581507]
[1749416568193,0.26576855,654.81,653.99,0.30581507]
[1749416568389,1.1060511,655.16,653.99,0.30581507]
[1749416568592,0.26577261,654.81,653.99,0.30581507]
[1749416569392,0.26577261,654.81,654.03,3.80364939]
[1749416569690,0.26577261,654.81,654.04,0.30579169]
[1749416571594,0.26577261,654.81,654.04,4.10944108]
[1749416574292,0.26577261,654.81,654.04,0.30579169]
[1749416584301,0.26577261,654.81,654.04,4.10944108]
[1749416584701,0.26577261,654.81,654.04,0.30579169]
[1749416588707,1.09925446,655.18,654.04,0.30579169]
[1749416588906,0.26576348,654.91,654.04,0.30579169]
[1749416598714,0.26576348,654.91,654.15,3.80364939]
[1749416598919,0.26576348,654.91,654.16,0.30573559]
[1749416612233,0.26576348,654.91,654.17,3.80364939]
[1749416612431,0.26576348,654.91,654.18,0.30572625]
[1749416619235,1.09925446,655.29,654.18,0.30572625]
[1749416619538,0.26571376,655.01,654.18,0.30572625]
[1749416630449,0.26571376,655.01,654.22,3.80364939]
[1749416630651,0.26571376,655.01,654.23,0.30570288]
[1749416631548,0.26571376,655.01,654.29,3.80364939]
[1749416631752,0.26571376,655.01,654.3,0.30567018]
[1749416640759,1.09925446,655.51,654.3,0.30567018]
[1749416640960,0.26564176,655.14,654.3,4.10931957]
[1749416641160,1.09925446,655.49,654.3,4.10931957]
[1749416641359,0.26563567,655.14,654.3,4.10931957]
[1749416642365,0.26563567,655.14,654.3,0.30567018]
[1749416644665,0.26563567,655.14,654.32,3.80364939]
[1749416644864,0.26563567,655.14,654.33,0.30565616]
[1749416649666,1.09925446,655.69,654.33,0.30565616]
[1749416649868,0.26560628,655.23,654.33,0.30565616]
[1749416650165,1.09925446,655.67,654.33,0.30565616]
[1749416650363,0.26560526,655.23,654.33,0.30565616]
[1749416650562,1.09925446,655.76,654.33,0.30565616]
[1749416650763,1.09925446,655.75,654.33,0.30565616]
[1749416651068,1.09925446,655.74,654.33,0.30565616]
[1749416651268,1.09925446,655.73,654.33,0.30565616]
[1749416651463,0.26559918,655.4,654.33,0.30565616]
[1749416658768,0.26559918,655.4,654.44,3.80364939]
[1749416658973,0.26559918,655.4,654.45,0.30560012]
[1749416699785,0.26559918,655.4,654.61,3.80364939]
[1749416699991,0.26559918,655.4,654.62,0.30552076]
[1749416700587,0.26559918,655.4,654.62,4.10917015]
[1749416701592,0.26559918,655.4,654.62,0.30552076]
[1749416733017,0.26559918,655.4,654.63,3.80364939]
[1749416733221,0.26559918,655.4,654.64,0.30551142]
[1749416733818,0.26559918,655.4,654.66,3.80364939]
[1749416734021,0.26559918,655.4,654.67,0.30549742]
[1749416734221,0.26559918,655.4,654.69,3.80364939]
[1749416734418,0.26559918,655.4,654.7,0.30548342]
[1749416735221,0.26559918,655.4,654.72,3.80364939]
[1749416735419,0.26559918,655.4,654.73,0.30546943]
[1749416735724,0.26559918,655.4,654.73,4.10911882]
[1749416736124,0.26559918,655.4,654.73,0.30546943]
[1749416738821,0.26559918,655.4,654.73,4.10911882]
[1749416741523,0.26559918,655.4,654.74,3.80364939]
[1749416741724,0.26559918,655.4,654.75,0.30546009]
[1749416752235,0.26559918,655.4,654.76,3.80364939]
[1749416752440,0.26559918,655.4,654.77,0.30545076]
[1749416754638,0.26559918,655.4,654.77,4.10910015]
[1749416756437,0.26559918,655.4,654.78,3.80364939]
[1749416756643,0.26559918,655.4,654.79,0.30544143]
[1749416759543,0.26559918,655.4,654.79,4.10909082]
[1749416763642,0.26559918,655.4,654.8,3.80364939]
[1749416763846,0.26559918,655.4,654.81,0.30543211]
[1749416766749,0.26559918,655.4,654.81,4.1090815]
[1749416767749,0.26559918,655.4,654.82,3.80364939]
[1749416768650,0.26559918,655.4,654.81,0.30543211]
[1749416850811,1.1042122,655.39,654.81,0.30543211]
[1749416851114,0.26559918,655.4,654.81,0.30543211]
[1749416851416,1.10421123,655.39,654.81,0.30543211]
[1749416851612,0.26560121,655.27,654.81,0.30543211]
[1749416856415,1.51894402,655.88,654.81,0.30543211]
[1749416856416,0.2656002,655.37,654.81,0.30543211]
[1749416857714,1.10455845,655.74,654.81,0.30543211]
[1749416857913,1.10455845,655.73,654.81,0.30543211]
[1749416858114,0.26555561,655.46,654.81,0.30543211]
[1749416907155,1.10031855,655.82,654.81,0.30543211]
[1749416907352,1.10031855,655.81,654.81,0.30543211]
[1749416907557,0.26547457,655.59,654.81,0.30543211]
[1749416921565,0.26547457,655.59,654.85,3.80364939]
[1749416921769,0.26547457,655.59,654.86,0.30540878]
[1749416922466,0.26547457,655.59,654.88,3.80364939]
[1749416922666,0.26547457,655.59,654.89,0.30539479]
[1749416924667,0.26547457,655.59,654.91,3.80364939]
[1749416924871,0.26547457,655.59,654.92,0.3053808]
[1749416929172,1.10031855,656.04,654.92,0.3053808]
[1749416929470,0.26541586,655.68,654.92,0.3053808]
[1749416929670,1.10031855,656.02,654.92,0.3053808]
[1749416929870,0.2654108,655.68,654.92,0.3053808]
[1749416930273,1.10031855,655.99,654.92,0.3053808]
[1749416930473,0.26541282,655.68,654.92,0.3053808]
[1749416962501,1.10154158,655.67,654.92,0.3053808]
[1749416962700,1.10154158,655.66,654.92,0.3053808]
[1749416962901,0.26541282,655.68,654.92,0.3053808]
[1749416963102,1.10234455,655.67,654.92,0.3053808]
[1749416963299,1.10234455,655.66,654.92,0.3053808]
[1749416963502,1.10234455,655.65,654.92,0.3053808]
[1749416963697,0.26541282,655.68,654.92,0.3053808]
[1749416963901,1.10350708,655.67,654.92,0.3053808]
[1749416964101,1.10350708,655.66,654.92,0.3053808]
[1749416964301,1.10350708,655.67,654.92,0.3053808]
[1749416964703,1.10350708,655.66,654.92,0.3053808]
[1749416964998,1.10350708,655.65,654.92,0.3053808]
[1749416965198,1.10350708,655.67,654.92,0.3053808]
[1749416965399,1.10350708,655.66,654.92,0.3053808]
[1749416965603,1.10350708,655.65,654.92,0.3053808]
[1749416965799,1.10350708,655.67,654.92,0.3053808]
[1749416966003,1.10350708,655.66,654.92,0.3053808]
[1749416966201,1.10350708,655.65,654.92,0.3053808]
[1749416966399,1.10350708,655.67,654.92,0.3053808]
[1749416966603,1.10350708,655.66,654.92,0.3053808]
[1749416966803,1.10350708,655.65,654.92,0.3053808]
[1749416967101,1.10350708,655.67,654.92,0.3053808]
[1749416967303,1.10350708,655.66,654.92,0.3053808]
[1749416967503,1.10350708,655.65,654.92,0.3053808]
[1749416967704,1.10350708,655.67,654.92,0.3053808]
[1749416967904,1.10350708,655.66,654.92,0.3053808]
[1749416968099,1.10350708,655.65,654.92,0.3053808]
[1749416968301,1.10350708,655.67,654.92,0.3053808]
[1749416968499,1.10350708,655.66,654.92,0.3053808]
[1749416968701,1.10350708,655.67,654.92,0.3053808]
[1749416968902,1.10350708,655.66,654.92,0.3053808]
[1749416969103,1.10350708,655.67,654.92,0.3053808]
[1749416969304,1.10350708,655.66,654.92,0.3053808]
[1749416969500,1.10350708,655.67,654.92,0.3053808]
[1749416970506,0.26541282,655.68,654.92,0.3053808]
[1749416974308,1.10350708,655.67,654.92,0.3053808]
[1749416975808,0.26541282,655.68,654.92,0.3053808]
[1749417014751,1.10132256,656.04,654.92,0.3053808]
[1749417014951,0.26543408,655.81,654.92,0.3053808]
[1749417033460,0.26543408,655.81,654.92,4.10903019]
[1749417034267,0.26543408,655.81,654.92,0.3053808]
[1749417057386,0.26543408,655.81,654.92,4.10903019]
[1749417058685,0.26543408,655.81,654.92,0.3053808]
[1749417074197,0.26543408,655.81,655.05,3.80364939]
[1749417074398,0.26543408,655.81,655.06,0.30531554]
[1749417075898,0.26543408,655.81,655.07,3.80364939]
[1749417076100,0.26543408,655.81,655.08,0.30530622]
[1749417104722,0.26543408,655.81,655.09,3.80364939]
[1749417105024,0.26543408,655.81,655.1,0.3052969]
[1749417116925,1.11082852,655.8,655.1,0.3052969]
[1749417117123,0.26543408,655.81,655.1,0.3052969]
[1749417117427,1.11082852,655.8,655.1,0.3052969]
[1749417117621,0.26543408,655.81,655.1,0.3052969]
[1749417117825,1.11082716,655.8,655.1,0.3052969]
[1749417118024,0.26543408,655.81,655.1,0.3052969]
[1749417118226,1.11082575,655.8,655.1,0.3052969]
[1749417118427,0.26543408,655.81,655.1,0.3052969]
[1749417143447,1.10741353,655.8,655.1,0.3052969]
[1749417143744,1.10741353,655.79,655.1,0.3052969]
[1749417143944,1.10741111,655.78,655.1,0.3052969]
[1749417144145,1.10741111,655.77,655.1,0.3052969]
[1749417144443,1.10741111,655.76,655.1,0.3052969]
[1749417144646,0.26543408,655.81,655.1,0.3052969]